bitfinex/quotes_SOLUSD_20230104
["timestamp","ask_amount","ask_price","bid_price","bid_amount"]
[1672867261225,199.5407,13.102,13.09,15.2528212]
[1672867262609,199.5407,13.102,13.085,146.91528368]
[1672867262797,199.5407,13.102,13.086,15.2528212]
[1672867263659,39.76,13.1,13.086,15.2528212]
[1672867263848,169.5407,13.102,13.09,39.54]
[1672867264066,112.2507,13.102,13.09,39.54]
[1672867264284,112.2507,13.102,13.091,32.2528212]
[1672867264513,112.2507,13.102,13.091,17.0]
[1672867264816,112.2507,13.102,13.092,15.2528212]
[1672867266508,112.2507,13.102,13.088,44.43857879]
[1672867266717,112.2507,13.102,13.09,15.2528212]
[1672867267336,112.2507,13.102,13.091,17.0]
[1672867268724,112.2507,13.102,13.091,32.2528212]
[1672867271677,112.2507,13.102,13.092,98.71183997]
[1672867271873,112.2507,13.102,13.093,17.0]
[1672867272085,57.26,13.109,13.094,50.0]
[1672867272415,118.006,13.109,13.096,30.0]
[1672867272725,118.006,13.109,13.097,74.31]
[1672867272925,118.006,13.109,13.097,242.55825958]
[1672867273119,118.006,13.109,13.098,123.80968079]
[1672867273347,30.469918,13.124,13.11,72.76355234]
[1672867273559,30.469918,13.124,13.11,39.76]
[1672867273765,30.469918,13.124,13.111,32.2528212]
[1672867273977,87.659918,13.124,13.111,89.12608238]
[1672867274179,87.659918,13.124,13.112,15.2528212]
[1672867274391,30.469918,13.124,13.113,37.0]
[1672867274601,30.469918,13.124,13.113,136.56758246]
[1672867275039,30.469918,13.124,13.113,73.87326118]
[1672867275858,30.469918,13.124,13.114,56.87326118]
[1672867276067,30.469918,13.124,13.113,79.69432128]
[1672867276068,30.469918,13.124,13.113,17.0]
[1672867276698,57.2,13.123,13.1,198.22]
[1672867276910,170.2441,13.123,13.105,30.0]
[1672867277129,170.2441,13.123,13.106,74.27]
[1672867277340,170.2441,13.123,13.106,89.5228212]
[1672867277541,170.2441,13.123,13.103,57.28]
[1672867277542,30.0,13.122,13.103,57.28]
[1672867277740,57.21,13.121,13.104,20.0]
[1672867278376,57.21,13.121,13.105,15.2528212]
[1672867278582,30.0,13.12,13.105,15.2528212]
[1672867278800,30.0,13.12,13.104,76.87326118]
[1672867278801,57.21,13.119,13.104,20.0]
[1672867279009,30.0,13.118,13.101,57.29]
[1672867279203,30.0,13.118,13.1,96.75]
[1672867279204,57.22,13.117,13.1,96.75]
[1672867279412,30.0,13.116,13.1,39.45]
[1672867279630,174.9918,13.115,13.1,39.45]
[1672867280043,30.0,13.114,13.1,39.45]
[1672867280360,30.0,13.114,13.097,72.5628212]
[1672867280585,57.24,13.113,13.097,72.5628212]
[1672867280798,57.24,13.113,13.097,15.2528212]
[1672867281325,57.24,13.113,13.093,57.33]
[1672867281540,57.24,13.113,13.094,35.2528212]
[1672867281730,57.24,13.113,13.095,57.32]
[1672867281942,56.74,13.113,13.095,116.81379999]
[1672867282672,56.74,13.113,13.095,129.44608238]
[1672867282912,30.0,13.112,13.095,57.32]
[1672867283118,30.0,13.11,13.094,20.0]
[1672867283436,57.26,13.109,13.094,20.0]
[1672867283965,57.26,13.109,13.095,17.0]
[1672867284377,30.0,13.108,13.091,57.34]
[1672867284588,57.27,13.107,13.091,101.58097879]
[1672867284779,30.0,13.106,13.091,57.34]
[1672867285431,30.0,13.104,13.09,39.38]
[1672867285631,30.0,13.104,13.089,57.35]
[1672867286675,112.3129,13.105,13.09,55.0128212]
[1672867287013,112.3129,13.105,13.092,30.0]
[1672867287222,112.3129,13.105,13.093,77.33]
[1672867288051,112.3129,13.105,13.094,17.0]
[1672867288369,112.3129,13.105,13.095,57.32]
[1672867288585,112.3129,13.105,13.096,17.0]
[1672867288794,112.3129,13.105,13.097,57.31]
[1672867288986,112.3129,13.105,13.098,17.0]
[1672867291220,112.3129,13.105,13.094,57.32]
[1672867291430,112.3129,13.105,13.093,20.0]
[1672867291618,112.3129,13.105,13.094,57.32]
[1672867291931,112.3129,13.105,13.093,20.0]
[1672867292141,112.3129,13.105,13.094,57.32]
[1672867292885,112.3129,13.105,13.095,17.0]
[1672867293096,112.3129,13.105,13.096,57.31]
[1672867293326,112.3129,13.105,13.097,17.0]
[1672867293950,112.3129,13.105,13.093,20.0]
[1672867294150,112.3129,13.105,13.091,20.0]
[1672867294356,112.3129,13.105,13.092,57.33]
[1672867294566,112.3129,13.105,13.093,20.0]
[1672867295119,112.3129,13.105,13.092,20.0]
[1672867295426,112.3129,13.105,13.093,17.0]
[1672867295642,112.3129,13.105,13.094,20.0]
[1672867298476,112.3129,13.105,13.095,17.0]
[1672867299101,112.3129,13.105,13.094,20.0]
[1672867299312,112.3129,13.105,13.092,20.0]
[1672867299510,112.3129,13.105,13.093,17.0]
[1672867299719,112.3129,13.105,13.094,20.0]
[1672867299948,112.3129,13.105,13.092,20.0]
[1672867300148,112.3129,13.105,13.093,57.33]
[1672867300360,112.3129,13.105,13.094,20.0]
[1672867300973,112.3129,13.105,13.092,20.0]
[1672867301189,112.3129,13.105,13.093,74.33]
[1672867301499,57.24,13.113,13.094,20.0]
[1672867301715,30.0,13.109,13.095,74.32]
[1672867301924,30.0,13.109,13.095,89.5728212]
[1672867302155,30.0,13.109,13.096,15.2528212]
[1672867302346,30.0,13.109,13.097,17.0]
[1672867302878,30.0,13.109,13.098,15.2528212]
[1672867303086,30.0,13.109,13.099,17.0]
[1672867305185,119.6744,13.11,13.099,17.0]
[1672867307821,110.9314,13.118,13.1,271.3528212]
[1672867308040,110.9314,13.118,13.101,17.0]
[1672867308041,109.8894,13.117,13.101,17.0]
[1672867308232,109.8894,13.117,13.102,57.29]
[1672867308444,109.8894,13.117,13.103,37.0]
[1672867308654,109.8894,13.117,13.104,57.28]
[1672867308860,109.8894,13.117,13.105,17.0]
[1672867309285,109.8894,13.117,13.105,32.2528212]
[1672867309506,109.8894,13.117,13.106,15.2528212]
[1672867309724,109.8894,13.117,13.107,17.0]
[1672867310145,30.0,13.116,13.087,129.46182648]
[1672867310458,30.0,13.116,13.104,101.11423997]
[1672867310651,30.0,13.116,13.1,198.6]
[1672867310975,30.0,13.116,13.104,14.44705324]
[1672867311197,109.8894,13.117,13.105,4.742]
[1672867311601,30.0,13.116,13.101,34.744]
[1672867312030,30.0,13.116,13.101,49.19105324]
[1672867312221,109.8894,13.117,13.102,20.0]
[1672867312439,109.8894,13.117,13.103,21.743]
[1672867312647,109.8894,13.117,13.104,20.0]
[1672867312855,109.8894,13.117,13.105,21.743]
[1672867314225,109.8894,13.117,13.105,17.0]
[1672867314877,109.8894,13.117,13.106,14.44705324]
[1672867315278,30.0,13.116,13.104,20.0]
[1672867315487,87.23,13.116,13.101,20.0]
[1672867316026,87.23,13.116,13.099,14.44705324]
[1672867316444,17.0,13.115,13.091,4.752]
[1672867316662,87.24,13.114,13.095,14.44705324]
[1672867316853,30.0,13.112,13.095,14.44705324]
[1672867317061,168.0084,13.111,13.095,14.44705324]
[1672867317401,30.0,13.11,13.095,14.44705324]
[1672867317613,139.0904,13.11,13.095,14.44705324]
[1672867319379,30.0,13.108,13.095,14.44705324]
[1672867321079,30.0,13.108,13.096,17.0]
[1672867325263,30.0,13.108,13.097,14.44705324]
[1672867325481,30.0,13.109,13.098,17.0]
[1672867326018,30.0,13.109,13.099,14.44705324]
[1672867326220,30.0,13.109,13.1,17.0]
[1672867326419,139.0904,13.11,13.1,17.0]
[1672867326631,57.24,13.113,13.112,421.1512]
[1672867326959,80.09792543,13.133,13.112,421.1512]
[1672867326960,57.23,13.116,13.112,421.1512]
[1672867327479,57.22,13.117,13.112,421.1512]
[1672867327695,57.22,13.117,13.101,14.44705324]
[1672867327906,30.0,13.116,13.102,17.0]
[1672867328110,30.0,13.114,13.102,17.0]
[1672867328302,30.0,13.114,13.103,14.44705324]
[1672867329569,30.0,13.117,13.115,613.77]
[1672867329780,17.0,13.116,13.115,613.77]
[1672867330010,17.0,13.116,13.094,23.05]
[1672867330224,30.0,13.117,13.095,67.0]
[1672867330419,30.0,13.117,13.095,81.44705324]
[1672867330632,30.0,13.117,13.096,14.44705324]
[1672867330831,30.0,13.117,13.097,74.31]
[1672867331266,30.0,13.117,13.098,14.44705324]
[1672867331480,30.0,13.117,13.099,74.3]
[1672867331701,30.0,13.115,13.1,39.76]
[1672867331899,30.0,13.115,13.101,17.0]
[1672867332108,30.0,13.115,13.101,31.44705324]
[1672867332304,299.08,13.12,13.118,410.3631]
[1672867332514,17.0,13.119,13.118,283.38709215]
[1672867332744,303.61,13.119,13.118,283.38709215]
[1672867332959,30.0,13.118,13.102,14.44705324]
[1672867333270,30.0,13.116,13.102,14.44705324]
[1672867335896,30.0,13.116,13.103,17.0]
[1672867336093,57.22,13.117,13.104,20.0]
[1672867336299,57.2,13.122,13.105,74.28]
[1672867336514,114.4889,13.125,13.11,39.76]
[1672867336726,114.4889,13.125,13.111,74.25]
[1672867337146,114.4889,13.125,13.111,88.69705324]
[1672867337354,30.0,13.123,13.112,14.44705324]
[1672867343360,110.0246,13.124,13.112,14.44705324]
[1672867347456,110.0246,13.124,13.112,65.84058683]
[1672867347664,57.18,13.128,13.113,17.0]
[1672867347866,11.1249342,13.129,13.114,77.24]
[1672867347867,113.5583,13.127,13.114,77.24]
[1672867348078,113.5583,13.127,13.115,17.0]
[1672867348407,113.5583,13.127,13.115,14.44705324]
[1672867348603,113.5583,13.127,13.116,14.44705324]
[1672867348820,30.0,13.125,13.107,57.27]
[1672867349030,30.0,13.123,13.108,14.44705324]
[1672867349561,57.2,13.122,13.108,14.44705324]
[1672867349775,30.0,13.123,13.108,14.44705324]
[1672867350617,30.0,13.123,13.106,57.27]
[1672867350803,30.0,13.123,13.105,170.148]
[1672867351013,30.0,13.123,13.107,14.44705324]
[1672867351236,30.0,13.121,13.107,14.44705324]
[1672867352190,30.0,13.119,13.107,14.44705324]
[1672867353353,118.8027,13.12,13.105,170.148]
[1672867353537,118.8027,13.12,13.105,127.31505324]
[1672867353752,30.0,13.119,13.105,184.59505324]
[1672867354500,118.8027,13.12,13.105,184.59505324]
[1672867354817,263.3,13.123,13.11,39.76]
[1672867355027,30.0,13.121,13.111,57.25]
[1672867355216,30.0,13.121,13.111,14.44705324]
[1672867356274,30.0,13.121,13.106,57.27]
[1672867356482,30.0,13.121,13.106,71.71705324]
[1672867357875,30.0,13.121,13.107,17.0]
[1672867358063,30.0,13.121,13.108,57.26]
[1672867358275,30.0,13.121,13.108,71.70705324]
[1672867358494,30.0,13.121,13.109,14.44705324]
[1672867364280,117.8359,13.122,13.109,14.44705324]
[1672867364598,117.8359,13.122,13.11,17.0]
[1672867364784,117.8359,13.122,13.11,74.25]
[1672867365005,117.8359,13.122,13.111,14.44705324]
[1672867366797,30.0,13.121,13.111,14.44705324]
[1672867369009,30.0,13.121,13.108,57.26]
[1672867369420,30.0,13.121,13.109,14.44705324]
[1672867370273,30.0,13.121,13.106,57.27]
[1672867370488,30.0,13.119,13.105,170.148]
[1672867371322,30.0,13.119,13.104,14.44705324]
[1672867371515,116.81930743,13.118,13.101,57.29]
[1672867371730,30.0,13.117,13.1,57.3]
[1672867372047,30.0,13.117,13.098,14.44705324]
[1672867372048,53.58441098,13.114,13.099,57.3]
[1672867372255,53.58441098,13.112,13.099,57.3]
[1672867372467,53.58441098,13.11,13.098,57.31]
[1672867379007,93.14441098,13.11,13.098,57.31]
[1672867381940,30.0,13.109,13.098,57.31]
[1672867382151,53.58441098,13.108,13.098,57.31]
[1672867382362,30.0,13.107,13.098,57.31]
[1672867382576,53.58441098,13.106,13.098,57.31]
[1672867382986,53.58441098,13.106,13.095,57.32]
[1672867383202,53.58441098,13.106,13.096,17.0]
[1672867383419,53.58441098,13.106,13.097,57.31]
[1672867386778,53.58441098,13.106,13.097,71.75705324]
[1672867387211,108.4733,13.118,13.109,29.81398655]
[1672867387612,108.4733,13.118,13.11,14.44705324]
[1672867389192,258.9,13.124,13.121,479.8354]
[1672867389411,258.9,13.124,13.122,23.27164064]
[1672867389832,286.1,13.123,13.122,23.27164064]
[1672867390235,228.9,13.123,13.122,23.27164064]
[1672867390662,228.9,13.123,13.121,479.8354]
[1672867390890,17.0,13.122,13.109,29.81398655]
[1672867391085,30.0,13.122,13.109,29.81398655]
[1672867391297,30.0,13.122,13.11,14.44705324]
[1672867391828,57.19,13.125,13.124,641.0]
[1672867392048,57.19,13.125,13.124,550.5891]
[1672867392231,200.0,13.124,13.109,29.81398655]
[1672867392443,13.22,13.12,13.109,29.81398655]
[1672867392650,30.0,13.117,13.109,29.81398655]
[1672867393505,30.0,13.117,13.099,57.3]
[1672867393506,228.9,13.116,13.099,57.3]
[1672867393723,30.0,13.115,13.1,14.44705324]
[1672867394245,17.0,13.114,13.1,14.44705324]
[1672867394441,30.0,13.113,13.1,14.44705324]
[1672867394651,30.0,13.111,13.1,14.44705324]
[1672867397077,30.0,13.111,13.098,166.025]
[1672867397696,30.22,13.11,13.098,166.025]
[1672867398655,30.0,13.109,13.098,57.31]
[1672867398862,17.0,13.108,13.091,57.34]
[1672867399073,17.0,13.108,13.091,169.5351]
[1672867399295,17.0,13.108,13.098,57.31]
[1672867400649,17.0,13.108,13.092,57.33]
[1672867400864,13.22,13.1,13.093,6.67661669]
[1672867401060,13.22,13.1,13.091,6.67610676]
[1672867402115,24.13461528,13.101,13.091,6.67610676]
[1672867402342,30.0,13.1,13.091,6.67610676]
[1672867402865,6.71995219,13.099,13.091,6.67610676]
[1672867403503,30.0,13.097,13.091,6.67610676]
[1672867403690,10.17222525,13.096,13.086,51.31318054]
[1672867403902,30.0,13.097,13.086,51.31318054]
[1672867404109,6.17214694,13.096,13.086,51.31318054]
[1672867404430,30.0,13.097,13.086,51.31318054]
[1672867405073,6.11375163,13.095,13.086,51.31318054]
[1672867405390,8.59693459,13.096,13.086,51.31318054]
[1672867405602,17.0,13.095,13.086,51.31318054]
[1672867405813,8.59693459,13.094,13.085,31.04]
[1672867407275,87.3,13.099,13.085,31.04]
[1672867407276,119.58,13.1,13.085,31.04]
[1672867407487,30.0,13.11,13.101,579.20201297]
[1672867407680,30.0,13.104,13.101,1795.80010194]
[1672867407892,30.0,13.104,13.101,1713.21700194]
[1672867408331,30.0,13.104,13.101,1702.21700194]
[1672867408545,258.9,13.106,13.104,457.8017]
[1672867408733,278.9,13.105,13.104,431.2413]
[1672867409482,278.9,13.105,13.104,0.0013]
[1672867409699,228.9,13.103,13.101,1702.21700194]
[1672867409888,30.0,13.102,13.101,300.21700194]
[1672867410553,30.0,13.1,13.08,57.38]
[1672867410856,39.46,13.09,13.079,57.39]
[1672867411589,39.46,13.09,13.079,30.0]
[1672867411805,30.0,13.112,13.107,56.21823684]
[1672867411991,30.0,13.11,13.107,56.21823684]
[1672867412636,30.0,13.11,13.085,30.0]
[1672867412830,30.0,13.11,13.084,57.37]
[1672867412831,30.0,13.098,13.084,57.37]
[1672867413040,39.84,13.09,13.08,57.38]
[1672867413566,39.84,13.09,13.079,114.47951387]
[1672867413776,39.84,13.09,13.08,30.0]
[1672867413981,39.84,13.09,13.081,57.38]
[1672867414428,39.84,13.09,13.079,57.39]
[1672867414948,17.0,13.089,13.078,57.39]
[1672867415263,30.0,13.088,13.078,57.39]
[1672867415461,17.0,13.087,13.078,57.39]
[1672867417995,79.38,13.09,13.078,57.39]
[1672867418209,39.54,13.09,13.078,57.39]
[1672867418424,39.54,13.09,13.079,30.0]
[1672867418632,39.54,13.09,13.08,57.38]
[1672867418948,159.36,13.1,13.098,370.8552]
[1672867419140,245.9,13.099,13.098,1772.8552]
[1672867419357,245.9,13.099,13.098,1791.27694702]
[1672867420085,245.9,13.099,13.098,1431.42174702]
[1672867420305,245.9,13.099,13.098,1402.0]
[1672867420516,286.72513102,13.099,13.098,1402.0]
[1672867420730,286.72513102,13.099,13.098,701.0]
[1672867420946,30.0,13.098,13.078,57.39]
[1672867421131,228.9,13.089,13.078,57.39]
[1672867421345,30.0,13.088,13.078,57.39]
[1672867421565,47.0,13.088,13.078,57.39]
[1672867421783,30.0,13.104,13.101,441.72]
[1672867421981,17.0,13.102,13.101,441.72]
[1672867422309,286.19,13.102,13.101,441.72]
[1672867422500,286.19,13.102,13.082,57.38]
[1672867422713,427.65,13.1,13.082,57.38]
[1672867422918,427.65,13.1,13.083,115.0109]
[1672867423154,39.71,13.1,13.084,77.37]
[1672867423348,39.71,13.1,13.086,30.0]
[1672867423676,228.9,13.102,13.101,661.29]
[1672867424080,228.9,13.102,13.087,57.35]
[1672867424297,228.9,13.099,13.088,30.0]
[1672867424497,47.0,13.098,13.089,57.35]
[1672867425136,57.27,13.107,13.104,385.26]
[1672867425334,228.9,13.106,13.104,385.26]
[1672867425761,228.9,13.106,13.091,57.34]
[1672867425970,228.9,13.099,13.087,57.35]
[1672867426191,30.0,13.098,13.087,57.35]
[1672867427040,228.9,13.099,13.087,57.35]
[1672867427358,39.73,13.1,13.088,30.0]
[1672867427665,258.9,13.107,13.089,57.35]
[1672867427855,258.9,13.107,13.09,30.0]
[1672867428062,258.9,13.107,13.091,170.1558]
[1672867428395,30.0,13.108,13.092,30.0]
[1672867428595,30.0,13.108,13.094,30.0]
[1672867428805,30.0,13.108,13.096,30.0]
[1672867429036,30.0,13.108,13.097,57.31]
[1672867429563,228.9,13.109,13.097,57.31]
[1672867430509,275.9,13.108,13.097,57.31]
[1672867430705,275.9,13.108,13.096,30.0]
[1672867430919,275.9,13.108,13.097,57.31]
[1672867430920,258.9,13.108,13.097,57.31]
[1672867431657,30.0,13.108,13.097,57.31]
[1672867431869,228.9,13.109,13.097,71.75619299]
[1672867432294,228.9,13.107,13.097,71.75619299]
[1672867432504,17.0,13.106,13.097,71.75619299]
[1672867434485,17.0,13.107,13.097,71.75619299]
[1672867437642,30.0,13.107,13.097,71.75619299]
[1672867437854,17.0,13.106,13.097,71.75619299]
[1672867439333,39.54,13.11,13.099,38.95587789]
[1672867439543,39.54,13.11,13.102,38.95587789]
[1672867439732,286.11,13.119,13.112,661.46]
[1672867439945,21.7811836,13.118,13.113,52.63464453]
[1672867440605,51.7811836,13.118,13.113,52.63464453]
[1672867440815,228.9,13.117,13.104,109.91464453]
[1672867441011,39.73,13.11,13.104,223.40444453]
[1672867441219,228.9,13.117,13.105,30.0]
[1672867441432,228.9,13.117,13.106,109.90464453]
[1672867441658,228.9,13.119,13.106,109.90464453]
[1672867442057,30.0,13.118,13.106,109.90464453]
[1672867442288,30.0,13.118,13.107,30.0]
[1672867442481,30.0,13.118,13.108,109.89464453]
[1672867443131,30.0,13.118,13.108,57.26]
[1672867443318,30.0,13.118,13.106,57.27]
[1672867443740,30.0,13.116,13.106,57.27]
[1672867443948,17.0,13.115,13.106,57.27]
[1672867444158,198.83,13.12,13.106,57.27]
[1672867444159,228.9,13.125,13.123,346.1888164]
[1672867444368,20.0,13.124,13.123,346.1888164]
[1672867444682,270.6811836,13.124,13.123,370.81010152]
[1672867444892,270.6811836,13.124,13.11,24.62128512]
[1672867445102,30.0,13.118,13.11,57.25]
[1672867445312,30.0,13.118,13.108,57.26]
[1672867445944,30.0,13.118,13.107,30.0]
[1672867446150,30.0,13.118,13.108,57.26]
[1672867446366,17.0,13.117,13.108,57.26]
[1672867446908,17.0,13.117,13.107,30.0]
[1672867447110,17.0,13.117,13.108,57.26]
[1672867447320,17.0,13.117,13.106,57.27]
[1672867449215,21.7811836,13.123,13.12,454.75]
[1672867449424,21.7811836,13.123,13.121,17.5119131]
[1672867449641,30.0,13.122,13.12,450.4807295]
[1672867449849,316.11,13.121,13.106,57.27]
[1672867450061,228.9,13.119,13.105,57.28]
[1672867450371,30.0,13.116,13.105,57.28]
[1672867450592,30.0,13.116,13.103,57.28]
[1672867450777,228.9,13.109,13.103,57.28]
[1672867451424,39.84,13.11,13.103,57.28]
[1672867451640,228.9,13.113,13.104,30.0]
[1672867451829,228.9,13.113,13.105,57.28]
[1672867452667,228.9,13.117,13.106,30.0]
[1672867452878,256.04,13.12,13.107,57.27]
[1672867452879,228.9,13.116,13.107,57.27]
[1672867454059,228.9,13.119,13.107,57.27]
[1672867454361,30.0,13.118,13.107,57.27]
[1672867454982,198.42,13.12,13.107,57.27]
[1672867455192,277.29379875,13.122,13.108,30.0]
[1672867455406,228.9,13.122,13.11,30.0]
[1672867455627,228.9,13.122,13.111,171.3343]
[1672867455844,228.9,13.122,13.112,30.0]
[1672867456048,228.9,13.125,13.114,30.0]
[1672867456259,228.9,13.125,13.115,168.9478]
[1672867456474,228.9,13.125,13.116,30.0]
[1672867456791,228.9,13.125,13.117,57.22]
[1672867457330,228.9,13.125,13.117,30.0]
[1672867457823,228.9,13.125,13.118,57.22]
[1672867459935,80.1920408,13.126,13.118,57.22]
[1672867461207,80.1920408,13.126,13.119,30.0]
[1672867461524,80.1920408,13.126,13.121,30.0]
[1672867461736,80.1920408,13.126,13.122,57.2]
[1672867461940,80.1920408,13.126,13.119,30.0]
[1672867461941,309.0920408,13.126,13.12,57.21]
[1672867462264,309.0920408,13.126,13.119,30.0]
[1672867462457,309.0920408,13.126,13.12,57.21]
[1672867462781,17.0,13.125,13.12,57.21]
[1672867463186,17.0,13.125,13.119,57.21]
[1672867464552,80.1920408,13.126,13.119,57.21]
[1672867464974,80.1920408,13.126,13.12,30.0]
[1672867465200,3.0365408,13.126,13.122,30.0]
[1672867465517,11.1249342,13.129,13.123,57.2]
[1672867465734,0.0049342,13.129,13.124,35.23988824]
[1672867466037,30.0,13.138,13.126,30.0]
[1672867466249,228.9,13.139,13.128,30.0]
[1672867466443,228.9,13.139,13.129,57.17]
[1672867468560,228.9,13.138,13.129,57.17]
[1672867469187,39.32,13.14,13.129,57.17]
[1672867471920,17.0,13.139,13.129,57.17]
[1672867472561,47.0,13.139,13.129,57.17]
[1672867472773,47.0,13.139,13.128,30.0]
[1672867472774,275.9,13.139,13.128,30.0]
[1672867472959,30.0,13.138,13.128,30.0]
[1672867473172,17.0,13.137,13.127,57.18]
[1672867474331,275.9,13.138,13.127,57.18]
[1672867474538,30.0,13.137,13.126,57.18]
[1672867474858,17.0,13.136,13.126,57.18]
[1672867475714,30.0,13.135,13.126,57.18]
[1672867475921,17.0,13.134,13.116,30.0]
[1672867476114,17.0,13.134,13.117,57.22]
[1672867476326,17.0,13.134,13.118,30.0]
[1672867476537,17.0,13.134,13.119,57.21]
[1672867477185,39.46,13.13,13.119,57.21]
[1672867477499,39.46,13.13,13.116,30.0]
[1672867477500,30.0,13.128,13.117,57.22]
[1672867477807,24.05104154,13.127,13.117,57.22]
[1672867478025,24.05104154,13.127,13.113,57.24]
[1672867478260,21.32795781,13.125,13.112,57.24]
[1672867478472,21.32795781,13.123,13.112,57.24]
[1672867480047,21.32795781,13.127,13.113,30.0]
[1672867480239,21.32795781,13.125,13.114,57.24]
[1672867480451,17.0,13.126,13.114,57.24]
[1672867480659,2.70057046,13.125,13.114,57.24]
[1672867480880,17.0,13.126,13.115,30.0]
[1672867481093,30.0,13.129,13.117,30.0]
[1672867481292,7.90038469,13.128,13.118,57.22]
[1672867481501,30.0,13.129,13.118,57.22]
[1672867482257,30.0,13.129,13.117,30.0]
[1672867482444,30.0,13.129,13.118,57.22]
[1672867483076,268.32,13.13,13.129,671.0]
[1672867483306,17.0,13.13,13.129,671.0]
[1672867484352,394.0,13.137,13.129,578.17]
[1672867484569,21.7811836,13.135,13.13,5.41385109]
[1672867484763,21.7811836,13.135,13.132,701.0]
[1672867485089,21.7811836,13.135,13.133,17.16151384]
[1672867485925,228.9,13.133,13.132,701.0]
[1672867486142,306.05,13.133,13.132,668.1747]
[1672867486334,327.8311836,13.133,13.132,668.1747]
[1672867486544,306.05,13.133,13.132,668.1747]
[1672867487192,306.05,13.133,13.132,548.1473]
[1672867487809,228.9,13.133,13.132,548.1473]
[1672867488023,228.9,13.133,13.132,547.75889]
[1672867488658,228.9,13.133,13.118,119.7409]
[1672867488866,228.9,13.136,13.12,30.0]
[1672867489076,30.0,13.135,13.121,57.21]
[1672867489303,30.0,13.133,13.121,57.21]
[1672867489497,17.0,13.132,13.121,174.0638]
[1672867491073,21.7811836,13.136,13.122,30.0]
[1672867491284,228.9,13.137,13.123,57.2]
[1672867491499,228.9,13.137,13.124,30.0]
[1672867491710,228.9,13.137,13.126,30.0]
[1672867491921,250.6811836,13.139,13.127,57.18]
[1672867492246,30.0,13.138,13.127,57.18]
[1672867492652,30.0,13.138,13.126,57.18]
[1672867493065,30.0,13.136,13.126,57.18]
[1672867493826,17.0,13.135,13.126,57.18]
[1672867494142,275.9,13.136,13.126,57.18]
[1672867495174,245.9,13.136,13.126,57.18]
[1672867495388,228.9,13.136,13.126,57.18]
[1672867496454,30.0,13.138,13.126,57.18]
[1672867496665,17.0,13.137,13.126,57.18]
[1672867497597,228.9,13.139,13.127,30.0]
[1672867497814,228.9,13.139,13.129,30.0]
[1672867498023,228.9,13.139,13.13,57.17]
[1672867498748,228.9,13.139,13.129,30.0]
[1672867498968,228.9,13.139,13.13,57.17]
[1672867499189,228.9,13.137,13.13,57.17]